bitfinex/quotes_SOLUSD_20250924
["timestamp","ask_amount","ask_price","bid_price","bid_amount"]
[1758709430143,1.34065366,211.49,211.44,0.68]
[1758709430363,1.34065366,211.48,211.44,0.68]
[1758709430540,1.34065366,211.47,211.44,5.40941231]
[1758709430862,1.34065366,211.46,211.44,5.40941231]
[1758709431037,1.34065366,211.45,211.44,5.40941231]
[1758709431356,1.34065366,211.48,211.44,5.40941231]
[1758709431561,1.34065366,211.47,211.44,5.40941231]
[1758709431764,1.34065366,211.46,211.44,5.40941231]
[1758709431943,1.34065366,211.45,211.44,5.40941231]
[1758709432138,1.34065366,211.45,211.44,0.68]
[1758709432349,0.69,211.49,211.44,0.68]
[1758709432350,6.06924334,211.48,211.44,0.68]
[1758709432545,6.06924334,211.48,211.41,1.49337353]
[1758709432546,0.69,211.46,211.41,0.67]
[1758709432739,1.34065366,211.45,211.41,0.67]
[1758709432939,13.59559401,211.47,211.42,0.67]
[1758709432940,1.34065366,211.44,211.42,0.67]
[1758709433171,0.69,211.49,211.42,1.49337353]
[1758709433367,1.33999224,211.48,211.42,1.49337353]
[1758709433668,1.33999224,211.47,211.43,0.67]
[1758709433850,1.33999224,211.46,211.43,0.67]
[1758709434165,1.33999224,211.45,211.43,0.67]
[1758709434367,1.33999224,211.44,211.43,0.67]
[1758709434555,1.34002247,211.47,211.43,0.67]
[1758709434785,1.34002247,211.46,211.43,0.67]
[1758709434943,1.34002247,211.45,211.43,0.67]
[1758709435143,1.34002247,211.44,211.43,0.67]
[1758709435655,1.34002247,211.47,211.43,0.67]
[1758709435855,1.34002247,211.46,211.43,0.67]
[1758709436161,1.34005327,211.45,211.43,0.67]
[1758709436358,1.34005327,211.44,211.43,0.67]
[1758709436561,1.34005327,211.47,211.43,5.39969777]
[1758709436870,1.34005327,211.46,211.44,0.67]
[1758709437072,1.34005327,211.45,211.44,0.67]
[1758709437450,1.34005327,211.47,211.44,0.67]
[1758709437649,1.34005327,211.46,211.44,0.67]
[1758709437850,1.34005327,211.45,211.44,0.67]
[1758709438369,1.34005327,211.47,211.44,0.67]
[1758709438569,1.34005327,211.46,211.44,0.67]
[1758709438881,1.34005327,211.45,211.44,0.67]
[1758709439171,1.34005327,211.47,211.44,0.67]
[1758709439372,1.34005327,211.46,211.44,0.67]
[1758709439674,5.41859287,211.48,211.44,0.67]
[1758709439675,1.34005327,211.45,211.44,0.67]
[1758709439877,6.0688635,211.47,211.42,4.72989664]
[1758709440084,1.34005327,211.46,211.43,0.7]
[1758709440377,4.72881023,211.47,211.42,0.7]
[1758709440378,1.33992381,211.45,211.42,0.7]
[1758709440561,1.33992381,211.44,211.42,0.7]
[1758709440765,1.33992381,211.43,211.42,0.7]
[1758709441282,4.72881023,211.47,211.42,0.7]
[1758709441485,1.33986364,211.46,211.42,0.7]
[1758709441660,4.72881023,211.47,211.42,0.7]
[1758709441661,1.33986364,211.45,211.42,0.7]
[1758709441862,4.72881023,211.47,211.42,5.42975037]
[1758709442176,10.55298711,211.65,211.44,2.32974805]
[1758709442177,1.33987164,211.46,211.44,2.32974805]
[1758709442379,18.32351578,211.51,211.44,2.32974805]
[1758709442380,18.32351578,211.51,211.45,0.7]
[1758709442679,1.33990175,211.5,211.45,0.7]
[1758709442882,1.33990175,211.49,211.45,0.7]
[1758709443062,1.33990175,211.48,211.45,0.7]
[1758709443269,1.33990175,211.47,211.46,4.72902676]
[1758709443466,1.33990175,211.5,211.46,5.42902676]
[1758709443664,1.33990175,211.49,211.47,0.7]
[1758709443867,1.33990175,211.48,211.47,0.7]
[1758709444992,1.33990175,211.48,211.47,5.42880313]
[1758709445158,18.42289511,211.54,211.47,5.42880313]
[1758709445362,1.33989445,211.53,211.5,26.0]
[1758709445554,0.1,211.54,211.52,2.32974805]
[1758709445759,0.1,211.54,211.53,0.7]
[1758709446186,0.1,211.54,211.53,3.02974805]
[1758709446775,0.1,211.54,211.53,7.89937144]
[1758709449701,0.1,211.54,211.53,5.42746182]
[1758709449907,0.1,211.54,211.53,7.75720987]
[1758709450705,0.1,211.54,211.53,7.89937144]
[1758709451805,0.1,211.54,211.53,9.79380418]
[1758709452588,1e-08,211.54,211.53,23.38939819]
[1758709454106,1e-08,211.54,211.53,46.29380418]
[1758709454824,1e-08,211.54,211.53,59.88939819]
[1758709456313,1e-08,211.54,211.53,7.46405613]
[1758709456608,1e-08,211.54,211.53,59.72723662]
[1758709456786,1e-08,211.54,211.53,59.86939819]
[1758709457586,1e-08,211.56,211.55,39.73775558]
[1758709457793,1e-08,211.56,211.55,42.06750363]
[1758709458103,1e-08,211.56,211.55,42.76750363]
[1758709458492,1e-08,211.56,211.55,47.49451852]
[1758709459513,1e-08,211.56,211.55,49.38850276]
[1758709460804,1e-08,211.56,211.55,85.86850276]
[1758709463914,0.1,211.61,211.6,44.35780754]
[1758709464112,0.1,211.61,211.6,46.25161243]
[1758709464624,1e-08,211.61,211.6,59.84720644]
[1758709465209,1e-08,211.61,211.6,57.51745839]
[1758709465539,1e-08,211.61,211.6,59.84720644]
[1758709467010,1e-08,211.61,211.6,1.89380489]
[1758709467226,0.66000001,211.61,211.6,1.89380489]
[1758709467608,0.66000001,211.61,211.58,43.57598956]
[1758709467810,0.66,211.6,211.58,38.84974805]
[1758709468109,0.66,211.59,211.58,43.57609269]
[1758709468829,0.66,211.59,211.58,36.52]
[1758709469127,0.66,211.59,211.55,4.72541151]
[1758709469128,0.66,211.59,211.55,4.72680224]
[1758709469336,1e-08,211.61,211.54,2.32974805]
[1758709469337,0.66,211.58,211.56,36.52]
[1758709469621,0.66,211.57,211.55,36.52]
[1758709469833,0.66,211.56,211.55,36.52]
[1758709470000,0.66,211.56,211.52,2.32974805]
[1758709470205,4.72723834,211.54,211.48,14.21161089]
[1758709470410,0.66,211.53,211.49,36.54]
[1758709470625,0.66,211.52,211.49,36.54]
[1758709470923,0.66,211.51,211.46,7.05698639]
[1758709471106,0.66,211.5,211.47,36.54]
[1758709471307,0.66,211.49,211.47,36.54]
[1758709471913,1.3296821,211.53,211.48,2.32974805]
[1758709472118,0.66,211.52,211.49,36.54]
[1758709472340,0.66,211.51,211.49,36.54]
[1758709472716,1.9910349,211.54,211.49,36.54]
[1758709472932,0.66,211.53,211.49,36.54]
[1758709473929,0.66,211.53,211.49,41.26835343]
[1758709474913,1.9910349,211.53,211.49,41.26835343]
[1758709475123,0.66,211.53,211.49,41.26835343]
[1758709475905,0.66,211.53,211.49,43.65810148]
[1758709476121,1.33202174,211.55,211.49,43.65810148]
[1758709476332,0.66,211.57,211.51,2.32974805]
[1758709476715,0.66,211.57,211.51,38.92974805]
[1758709476919,1.33244322,211.59,211.52,0.68]
[1758709477232,1.99244322,211.59,211.53,38.92974805]
[1758709477634,1.99244322,211.59,211.53,36.6]
[1758709478022,1.99244322,211.59,211.54,4.72723834]
[1758709478207,0.66,211.58,211.54,4.72723834]
[1758709478406,1.99244322,211.58,211.54,4.72723834]
[1758709479029,1.33244322,211.58,211.53,36.6]
[1758709479236,0.66,211.57,211.53,36.6]
[1758709479437,0.66,211.57,211.53,41.32734006]
[1758709479731,0.66,211.57,211.53,36.6]
[1758709480027,0.66,211.56,211.5,14.27559402]
[1758709480212,1.99244322,211.56,211.51,36.6]
[1758709480409,1.33244322,211.56,211.5,36.6]
[1758709480629,1.99244322,211.55,211.5,36.6]
[1758709480827,1.33244322,211.54,211.5,37.28]
[1758709481034,0.66,211.55,211.5,37.28]
[1758709481220,1.99476582,211.55,211.5,37.28]
[1758709481625,0.66,211.54,211.47,2.32974805]
[1758709481820,4.32451387,211.53,211.44,44.35900941]
[1758709482132,6.72262811,211.52,211.44,44.35900941]
[1758709482310,1.33476582,211.51,211.44,44.35900941]
[1758709482505,1.33476582,211.51,211.45,0.68]
[1758709483117,1.33586048,211.5,211.45,0.68]
[1758709483320,0.66,211.5,211.44,55.50269461]
[1758709483527,0.66,211.5,211.44,43.67900941]
[1758709484121,1.99566627,211.49,211.44,36.62]
[1758709484436,0.66,211.48,211.44,36.62]
[1758709484627,1.33566627,211.49,211.44,37.3]
[1758709484820,1.99566627,211.49,211.44,41.34936046]
[1758709485532,0.66,211.48,211.44,41.34936046]
[1758709486146,6.0641161,211.49,211.44,41.34936046]
[1758709486332,4.72844983,211.49,211.44,42.02936046]
[1758709486542,5.38815705,211.5,211.44,42.02936046]
[1758709486722,1.33521177,211.49,211.44,42.02936046]
[1758709487356,1.33521177,211.49,211.45,0.68]
[1758709487644,2.98974805,211.54,211.45,0.68]
[1758709487940,1.99496287,211.53,211.46,3.00974805]
[1758709490040,1.9948495,211.49,211.43,26.0]
[1758709490425,6.72332821,211.49,211.43,31.40961222]
[1758709490625,0.65,211.48,211.41,0.72]
[1758709491750,5.3787024,211.48,211.42,4.72992148]
[1758709492247,4.7287024,211.48,211.42,4.72992148]
[1758709492424,4.72839018,211.49,211.43,0.72]
[1758709493320,2.97974805,211.5,211.43,0.72]
[1758709493321,7.70792197,211.5,211.43,0.72]
[1758709494220,7.70792197,211.5,211.43,5.44948713]
[1758709495050,7.70792197,211.5,211.44,0.72]
[1758709496554,7.70792197,211.5,211.44,5.44946501]
[1758709499338,7.70792197,211.5,211.44,0.72]
[1758709499735,26.0,211.43,211.28,0.2]
[1758709500060,2.32974805,211.29,211.28,0.2]
[1758709500443,2.99974805,211.29,211.28,0.2]
[1758709500651,2.16430566,211.29,211.28,0.2]
[1758709501238,6.89713731,211.29,211.28,0.2]
[1758709501545,20.49273132,211.29,211.28,0.2]
[1758709502256,6.89713731,211.29,211.28,0.2]
[1758709502752,8.22459285,211.29,211.28,0.2]
[1758709504867,8.22257604,211.29,211.28,0.2]
[1758709507266,3.48974439,211.29,211.28,0.2]
[1758709507444,2.81974439,211.29,211.28,0.2]
[1758709507854,3.48974439,211.29,211.28,0.2]
[1758709508537,1.99543873,211.29,211.28,0.2]
[1758709508735,8.22257604,211.29,211.28,0.2]
[1758709509277,1.32543873,211.29,211.28,0.92]
[1758709509455,2.81974439,211.29,211.28,0.2]
[1758709511055,7.55257604,211.29,211.28,0.2]
[1758709513278,2.81974439,211.29,211.28,0.92]
[1758709513447,1.32543873,211.29,211.28,0.92]
[1758709515068,1.32543873,211.29,211.28,0.2]
[1758709515963,1.32543873,211.29,211.28,0.92]
[1758709516362,1.32543873,211.29,211.28,0.2]
[1758709517272,6.05827038,211.29,211.28,0.2]
[1758709517473,1.32543873,211.29,211.28,0.92]
[1758709518769,1.32543873,211.29,211.28,0.2]
[1758709518969,8.22257604,211.29,211.24,0.2]
[1758709519158,1.32543873,211.28,211.24,0.2]
[1758709519974,1.32543873,211.28,211.25,0.72]
[1758709521479,6.05849439,211.28,211.25,0.72]
[1758709524171,1.32543873,211.28,211.25,0.72]
[1758709524366,6.05849439,211.28,211.25,0.72]
[1758709526675,6.76849439,211.28,211.24,0.2]
[1758709526880,18.60113354,211.28,211.24,0.2]
[1758709527181,15.08989967,211.25,211.24,0.2]
[1758709527381,16.4153384,211.25,211.24,0.2]
[1758709527581,21.85906621,211.25,211.24,0.2]
[1758709528584,23.35337187,211.25,211.24,0.2]
[1758709528961,39.59559401,211.23,211.22,0.2]
[1758709529292,79.3353384,211.23,211.22,0.2]
[1758709529463,80.0453384,211.23,211.22,0.2]
[1758709529780,84.77951441,211.23,211.22,0.2]
[1758709530987,84.92167598,211.23,211.22,1e-08]
[1758709531167,13.59559401,211.22,211.2,1e-08]
[1758709531366,53.47749997,211.21,211.2,1e-08]
[1758709531675,54.18749997,211.21,211.2,1e-08]
[1758709532412,58.92212427,211.21,211.2,1e-08]
[1758709533267,13.59559401,211.17,211.14,1e-08]
[1758709533486,41.08989967,211.15,211.13,0.2]
[1758709533792,39.73775558,211.11,211.1,1e-08]
[1758709533962,13.73775558,211.1,211.02,0.68]
[1758709534164,6.23274387,211.04,210.98,0.68]
[1758709534479,13.59559401,211.03,210.96,0.68]
[1758709534790,13.59559401,211.01,210.96,0.68]
[1758709534962,1.49430566,210.97,210.96,0.68]
[1758709535160,2.81974439,210.97,210.96,0.68]
[1758709536073,1.32543873,210.97,210.96,0.68]
[1758709536281,7.55975481,210.97,210.93,0.68]
[1758709536461,1.32543873,210.96,210.94,0.68]
[1758709536658,1.32543873,210.96,210.88,4.74203338]
[1758709536659,1.32543873,210.95,210.9,26.0]
[1758709536864,1.32543873,210.94,210.9,26.0]
[1758709537074,1.32543873,210.93,210.9,26.0]
[1758709537284,1.32543873,210.92,210.91,0.68]
[1758709537975,1.32543873,210.92,210.86,4.7422702]
[1758709538174,1.49430566,210.94,210.91,0.68]
[1758709538481,1.18727652,210.93,210.91,0.68]
[1758709538684,1.18727652,210.92,210.91,0.68]
[1758709538884,2.68158218,210.92,210.91,0.68]
[1758709539063,2.68158218,210.92,210.88,0.68]
[1758709539264,2.68158218,210.92,210.84,4.74272465]
[1758709539265,1.18727652,210.91,210.89,0.68]
[1758709539477,1.18727652,210.9,210.85,26.0]
[1758709539685,1.18727652,210.89,210.85,26.0]
[1758709539865,1.18727652,210.88,210.85,26.0]
[1758709540068,1.18727652,210.87,210.86,0.68]
[1758709540370,1.18727652,210.87,210.86,5.42248316]
[1758709542382,1.18727652,210.87,210.86,9.02615091]
[1758709542579,37.72366775,210.97,210.86,20.88235882]
[1758709542892,1.18719288,210.96,210.88,3.60366775]
[1758709543089,37.72366775,210.97,210.86,16.59869107]
[1758709543090,4.79086063,210.95,210.89,0.68]
[1758709543394,1.18719288,210.94,210.89,0.68]
[1758709543588,1.18719288,210.93,210.9,0.68]
[1758709543794,1.18719288,210.92,210.91,0.68]
[1758709543995,1.18719288,210.96,210.91,0.68]
[1758709544177,1.18719288,210.95,210.86,4.74248316]
[1758709544497,1.18719288,210.94,210.91,0.68]
[1758709544677,1.18719288,210.93,210.92,0.68]
[1758709545591,1.18719288,210.96,210.92,0.68]
[1758709545774,1.18719288,210.95,210.93,0.68]
[1758709545973,1.18719288,210.94,210.93,0.68]
[1758709546269,1.18719288,210.94,210.89,0.68]
[1758709546588,4.74033279,210.96,210.86,30.74248316]
[1758709546589,6.63826768,210.93,210.86,0.68]
[1758709546790,1.18719288,210.92,210.86,0.68]
[1758709546990,1.18719288,210.91,210.86,0.68]
[1758709547186,0.14216157,211.0,210.86,0.68]
[1758709547187,4.73821369,211.05,210.9,3.60366775]
[1758709547410,3.60366775,211.01,210.91,4.28366775]
[1758709547569,13.59559401,210.99,210.91,0.68]
[1758709547772,0.71,210.98,210.91,0.68]
[1758709547979,0.71,210.98,210.87,3.60366775]
[1758709548185,3.60366775,210.98,210.89,0.68]
[1758709548373,38.03,210.97,210.89,4.28366775]
[1758709548585,38.03,210.97,210.9,4.74158368]
[1758709548899,38.03,210.97,210.9,5.42158368]
[1758709549196,37.32,210.97,210.91,0.68]
[1758709549370,37.32,210.97,210.91,4.28366775]
[1758709549971,4.73990246,210.98,210.91,0.68]
[1758709550194,42.05990246,210.98,210.91,0.68]
[1758709551911,42.72990246,210.98,210.91,0.68]
[1758709552107,54.57936686,210.98,210.91,0.68]
[1758709552997,54.57936686,210.98,210.9,3.60366775]
[1758709553201,39.59559401,210.95,210.84,0.69]
[1758709553414,39.59559401,210.95,210.73,48.20036666]
[1758709553415,3.60366775,210.92,210.82,0.69]
[1758709553705,38.03,210.91,210.84,3.60366775]
[1758709554096,38.03,210.91,210.81,16.60262795]
[1758709554097,38.03,210.91,210.86,3.60366775]
[1758709554286,0.67,210.9,210.84,3.60366775]
[1758709555219,8.34592601,210.87,210.79,3.60366775]
[1758709555509,3.60366775,210.84,210.76,4.7445139]
[1758709555711,4.27366775,210.84,210.76,5.4345139]
[1758709556016,4.27366775,210.84,210.77,0.69]
[1758709556393,0.67,210.84,210.77,0.69]
[1758709556712,5.41301172,210.84,210.77,5.43433934]
[1758709557013,4.74301172,210.84,210.78,3.60366775]
[1758709557313,4.74301172,210.84,210.78,4.29366775]
[1758709558124,37.36,210.86,210.78,0.69]
[1758709558125,5.41270808,210.85,210.78,0.69]
[1758709558324,5.41270808,210.85,210.77,4.74433934]
[1758709558505,9.01637583,210.85,210.77,5.43433934]
[1758709559000,9.01637583,210.85,210.78,0.69]
[1758709559204,4.27366775,210.85,210.78,0.69]
[1758709560114,4.74293302,210.84,210.78,0.69]
[1758709560333,4.79142242,210.83,210.76,0.72]
[1758709560491,5.42293302,210.84,210.76,0.72]
[1758709560692,6.7142042,210.83,210.76,0.72]
[1758709560891,5.52630343,210.83,210.76,0.72]
[1758709561193,5.42293302,210.84,210.76,0.72]
[1758709561393,6.20630343,210.82,210.76,0.72]
[1758709561593,6.20630343,210.82,210.74,26.0]
[1758709561594,6.20630343,210.82,210.74,0.72]
[1758709562228,6.20630343,210.82,210.75,4.74495848]
[1758709562424,6.20630343,210.82,210.75,5.46495848]
[1758709562425,10.94973484,210.82,210.75,5.46495848]
[1758709562713,2.34464895,210.81,210.75,5.46495848]
[1758709563116,13.59559401,210.86,210.76,3.06464895]
[1758709563289,2.34464895,210.84,210.77,0.72]
[1758709563485,2.34464895,210.82,210.77,0.72]
[1758709563913,2.34464895,210.84,210.78,0.72]
[1758709564111,28.34464895,210.84,210.78,0.72]
[1758709564316,28.34464895,210.84,210.78,5.46411088]
[1758709565093,1.18775467,210.83,210.78,5.46411088]
[1758709565411,2.34464895,210.87,210.79,0.72]
[1758709566596,26.0,210.88,210.8,4.74383301]
[1758709566813,28.34464895,210.88,210.81,0.72]
[1758709567495,26.0,210.88,210.81,0.72]
[1758709567695,28.34464895,210.88,210.81,0.72]
[1758709568213,1.18764529,210.87,210.81,0.72]
[1758709568729,1.18764529,210.87,210.82,4.74338298]
[1758709569016,1.18764529,210.87,210.82,5.46338298]
[1758709569891,5.92998444,210.87,210.81,4.74358504]
[1758709570096,1.86764529,210.86,210.81,4.74358504]
[1758709570493,0.68,210.85,210.79,5.46388354]
[1758709570693,0.68,210.85,210.7,35.58893892]
[1758709570694,2.34464895,210.82,210.75,0.72]
[1758709570911,1.18802442,210.81,210.75,0.72]
[1758709571120,1.18802442,210.8,210.76,2.34464895]
[1758709571417,1.18802442,210.79,210.77,0.72]
[1758709571714,7.76752855,210.85,210.78,0.72]
[1758709571902,1.18786903,210.84,210.78,0.72]
[1758709572111,1.18786903,210.83,210.78,0.72]
[1758709572304,1.18786903,210.82,210.78,0.72]
[1758709572610,1.18786903,210.81,210.78,0.72]
[1758709572812,5.4228796,210.85,210.76,2.34464895]
[1758709572813,1.18786903,210.8,210.79,0.72]
[1758709572991,1.18786903,210.84,210.79,0.72]
[1758709573189,1.18786903,210.83,210.8,0.72]
[1758709573388,1.18786903,210.82,210.8,0.72]
[1758709573591,1.18786903,210.81,210.8,0.72]
[1758709573825,1.18786903,210.81,210.78,2.34464895]
[1758709574121,1.18786903,210.8,210.78,2.34464895]
[1758709574311,1.18786903,210.79,210.77,16.6057788]
[1758709574622,38.04,210.87,210.78,2.34464895]
[1758709574827,5.93030297,210.86,210.79,4.74405806]
[1758709574995,1.18781611,210.85,210.79,5.46405806]
[1758709575196,1.18781611,210.84,210.79,5.46405806]
[1758709575505,1.18781611,210.83,210.8,0.72]
[1758709575836,1.18781611,210.82,210.8,0.72]
[1758709576134,1.18781611,210.81,210.8,0.72]
[1758709577309,1.18781611,210.81,210.8,5.46383301]
[1758709577699,1.18781611,210.81,210.8,7.80848196]
[1758709578418,1.18781611,210.81,210.8,4.74383301]
[1758709578617,1.18777923,210.81,210.8,4.74383301]
[1758709579917,1.18777923,210.81,210.79,4.74405806]
[1758709580116,1.18777923,210.8,210.79,5.46405806]
[1758709580318,1.18777923,210.8,210.78,4.74426712]
[1758709580504,1.18777923,210.79,210.78,4.74426712]
[1758709581099,1.18777923,210.79,210.78,5.44426712]
[1758709582006,1.18777923,210.85,210.78,17.30497496]
[1758709582221,1.18777216,210.84,210.79,3.04464895]
[1758709582423,1.18777216,210.83,210.79,2.34464895]
[1758709582726,1.18777216,210.82,210.8,0.7]
[1758709582911,5.41232787,210.87,210.8,0.7]
[1758709583225,1.18776999,210.86,210.81,4.74360798]
[1758709583536,1.18776999,210.85,210.81,4.74360798]
[1758709583722,1.18776999,210.84,210.81,4.74360798]
[1758709583900,1.18776999,210.83,210.81,4.74360798]
[1758709584102,1.18776999,210.82,210.81,5.44360798]
[1758709584303,63.3,210.89,210.81,5.44360798]
[1758709584629,1.18773318,210.88,210.82,0.7]
[1758709584806,3.53238213,210.87,210.8,0.7]
[1758709585003,1.18773318,210.86,210.8,0.7]
[1758709585340,1.18773318,210.85,210.81,4.74360798]
[1758709585636,1.18773318,210.84,210.81,5.44360798]
[1758709585837,0.67,210.87,210.81,5.44360798]
[1758709586128,1.18769244,210.86,210.81,5.44360798]
[1758709586428,7.75626617,210.9,210.82,0.7]
[1758709586721,1.1876385,210.89,210.82,0.7]
[1758709586905,1.1876385,210.88,210.82,0.7]
[1758709587110,1.1876385,210.87,210.82,0.7]
[1758709587308,7.75626617,210.9,210.83,5.44315799]
[1758709587509,1.18760186,210.89,210.83,5.44315799]
[1758709587812,1.18760186,210.89,210.84,3.04464895]
[1758709588020,1.18760186,210.88,210.82,7.78795208]
[1758709588220,1.18760186,210.87,210.82,3.04464895]
[1758709588400,4.20225081,210.86,210.78,4.74428313]
[1758709588605,1.18760186,210.85,210.8,0.7]
[1758709588908,1.85760186,210.85,210.8,0.7]
[1758709589333,1.85760186,210.85,210.8,5.44366929]
[1758709590025,1.85760186,210.85,210.78,31.44407652]
[1758709590026,5.93039357,210.85,210.78,31.44407652]
[1758709590234,1.18760186,210.84,210.78,31.44407652]
[1758709590412,1.18760186,210.84,210.79,0.7]
[1758709590731,0.67,210.85,210.8,0.7]
[1758709590927,1.85778405,210.85,210.8,0.7]
[1758709591803,1.85778405,210.85,210.81,4.74360798]
[1758709592734,3.01464895,210.87,210.81,5.44360798]
[1758709593030,1.18773814,210.86,210.81,5.44360798]
[1758709593229,1.18773814,210.86,210.82,0.7]
[1758709593425,1.18773814,210.86,210.81,4.74360798]
[1758709593612,1.85773814,210.86,210.81,5.44360798]
[1758709593806,6.60030151,210.86,210.81,0.7]
[1758709594005,5.41256337,210.86,210.81,0.7]
[1758709594209,1.18773799,210.85,210.81,5.4435625]
[1758709595635,5.41256337,210.86,210.81,5.4435625]
[1758709596319,1.18773799,210.85,210.81,5.4435625]
[1758709598539,6.60047404,210.85,210.79,0.7]
[1758709598727,1.18773799,210.84,210.79,5.44401136]
[1758709599036,0.67,210.83,210.77,26.0]
[1758709599333,0.67,210.82,210.77,26.0]
[1758709599636,0.67,210.82,210.77,26.7]
[1758709599837,2.34464895,210.81,210.76,0.7]
[1758709600037,1.18773799,210.8,210.76,0.7]
[1758709600336,1.85773799,210.79,210.73,0.7]
[1758709600638,1.85773799,210.79,210.69,37.22]
[1758709600639,1.18773799,210.78,210.71,5.44584082]
[1758709600836,7.75876299,210.79,210.66,0.1]
[1758709600837,2.34464895,210.75,210.66,0.1]
[1758709601134,2.34464895,210.75,210.68,0.7]
[1758709601135,1.18773799,210.74,210.68,0.7]
[1758709602038,1.18773799,210.74,210.66,0.8]
[1758709602039,3.01464895,210.73,210.66,0.8]
[1758709602343,4.74563401,210.72,210.66,5.54694022]
[1758709603444,4.74563401,210.72,210.66,4.84694022]
[1758709603743,2.34464895,210.72,210.67,0.7]
[1758709604352,4.74546653,210.73,210.67,0.7]
[1758709604529,2.34464895,210.76,210.67,3.04464895]
[1758709604723,2.34464895,210.76,210.69,2.34464895]
[1758709604962,31.41432182,210.78,210.7,0.7]
[1758709605164,3.53294375,210.77,210.7,0.7]
[1758709605454,3.53294375,210.77,210.69,0.7]
[1758709605455,31.93321815,210.76,210.69,0.7]
[1758709605653,30.74492335,210.76,210.69,0.7]
[1758709606156,26.67,210.76,210.69,0.7]
[1758709607145,26.67,210.76,210.7,4.74608448]
[1758709607325,26.0,210.76,210.71,0.7]
[1758709607525,26.0,210.76,210.72,0.7]
[1758709607838,37.91,210.79,210.73,0.7]
[1758709608041,0.67,210.82,210.73,0.7]
[1758709608347,2.34464895,210.81,210.73,0.7]
[1758709608533,1.18806208,210.8,210.73,0.7]
[1758709609129,0.67,210.8,210.74,4.74518363]
[1758709609343,1.85806225,210.8,210.73,5.44535948]
[1758709610943,1.85806225,210.8,210.73,0.7]
[1758709610944,2.34464895,210.79,210.73,0.7]
[1758709611358,7.08882183,210.79,210.73,5.44540507]
[1758709612158,4.74417288,210.79,210.73,5.44540507]
[1758709612556,4.2228562,210.78,210.7,3.02464895]
[1758709612859,4.2228562,210.78,210.71,0.68]
[1758709612860,0.69,210.78,210.71,0.68]
[1758709613047,4.22283854,210.78,210.71,0.68]
[1758709613361,3.03464895,210.78,210.71,0.68]
[1758709614155,3.03464895,210.78,210.72,4.74563401]
[1758709614156,7.77897016,210.78,210.72,4.74563401]
[1758709614660,7.77897016,210.78,210.72,5.42563401]
[1758709614842,3.03464895,210.78,210.72,5.42563401]
[1758709615053,37.97,210.81,210.73,0.68]
[1758709615348,1.18813491,210.8,210.73,0.68]
[1758709616043,1.18813491,210.8,210.74,4.74518363]
[1758709616261,1.18813491,210.8,210.75,0.68]
[1758709617736,1.18813491,210.8,210.75,5.42475717]
[1758709618157,1.18813491,210.8,210.76,0.68]
[1758709618356,5.43360962,210.81,210.76,0.68]
[1758709618634,1.87809806,210.8,210.75,4.74475717]
[1758709618948,1.87809806,210.8,210.75,5.42475717]
[1758709619250,4.22274701,210.8,210.75,5.42475717]
[1758709619556,7.77852129,210.8,210.75,5.42475717]
[1758709619947,5.43387234,210.8,210.75,5.42475717]
[1758709620149,7.77852129,210.8,210.75,5.42475717]
[1758709621044,7.08829427,210.81,210.76,0.71]
[1758709621259,1.18809806,210.8,210.77,0.71]
[1758709621654,1.18809806,210.8,210.75,0.71]
[1758709621954,1.18809806,210.8,210.76,0.71]
[1758709622265,5.93193878,210.8,210.76,0.71]
[1758709622475,5.39384072,210.8,210.75,4.74489201]
[1758709622759,1.83814348,210.79,210.73,5.45538104]
[1758709622961,3.33882293,210.79,210.73,5.45538104]
[1758709623277,0.65,210.79,210.73,5.45538104]
[1758709623441,1.838144,210.79,210.73,5.45538104]
[1758709624063,6.58228544,210.79,210.73,5.45538104]
[1758709624262,5.39414144,210.79,210.73,5.45538104]
[1758709627347,16.60283328,210.81,210.73,4.74538104]
[1758709627548,26.0,210.81,210.74,0.71]
[1758709627846,1.83805333,210.8,210.74,0.71]